Cogmind - Beta 13 *** ADVENTURER MODE // 2024.07.26 @ 16:35:43 Player: Jefffff Result: Destroyed by P-70 Sage with Tesla Rifle Performance ------------- Evolutions (5) 2500 Regions Visited (4) 800 Robots Destroyed (97) 485 Value Destroyed (2515) 2515 Prototype IDs (17) 340 Alien Tech Used (0) 0 Bonus (155) 155 TOTAL SCORE: 6795 Bonus ------- High Alert Combat Kills 155 Cogmind --------- Core Integrity 0/1000 Matter 252/300 Energy 91/100 System Corruption 11% Temperature Cool (0) Movement Walking (55) Location -5/Factory Parts ------- > --- POWER (2) -------- (None) > --- PROPULSION (4) --- FC-Compact Exoskeleton > --- UTILITY (9) ------ Scrap Engine Medium Storage Unit Improved Signal Interpreter Improved Terrain Scan Processor Improved Target Analyzer EM Disruption Field > --- WEAPON (2) ------- Hvy. KE Gauss Construct/C > --- INVENTORY (10) --- Light Angular Momentum Engine High-capacity Storage Unit Weapon Cycler Phase Shifter Component Analysis Suite Improved Recalibrator Mini Drone Bay (3/3) Mini Drone Bay (3/3) Improved Remote Datajack Lance Peak State ------------ > --- POWER ------------ Fission-Ion Core > --- PROPULSION ------- FC-Compact Exoskeleton > --- UTILITY ---------- Armored Scrap Engine Advanced Heat Sink Gravity Neutralizer Recoil Nullifier Recoil Nullifier Recoil Nullifier Recoil Nullifier Long-range Tractor Beam > --- WEAPON ----------- Hvy. KE Gauss Construct/C Power Maul > --- INVENTORY -------- Sensor Array Improved Terrain Scanner Proton Missile Launcher Improved Plasma Cutter Chainsword [Rating: 75] Favorites ----------- Power Light Ion Engine Engine Light Ion Engine Power Core Light Nuclear Core Propulsion Compact Wheel Leg Constructs Wheel Compact Wheel Utility Large Storage Unit Device Recoil Nullifier Storage Large Storage Unit Processor Signal Interpreter Weapon Light Assault Rifle Energy Cannon Beam Cannon Ballistic Gun Light Assault Rifle Ballistic Cannon Battle Cannon Launcher Heavy Rocket Launcher Special Weapon Mining Laser Impact Weapon Power Maul Slashing Weapon Chainsword Build | -11 -10 -10 -7 -5 ------- Run | Yrd Mat Sub Rec Fac Slots Evolved 10 | . . . . 10 Power 1 | . . . . 1 Propulsion 2 | . . . . 2 Utility 7 | . . . . 7 Weapon . | . . . . . Parts Attached 74 | 10 9 25 4 26 Power 7 | 1 2 4 . . Engine 5 | 1 . 4 . . Core 2 | . 2 . . . Reactor . | . . . . . Propulsion 14 | 3 5 6 . . Treads . | . . . . . Leg . | . . . . . Wheel 14 | 3 5 6 . . Hover . | . . . . . Flight . | . . . . . Utility 32 | 4 1 5 1 21 Device 21 | 3 . 1 1 16 Storage 5 | 1 1 1 . 2 Processor 6 | . . 3 . 3 Hackware . | . . . . . Protection . | . . . . . Artifact . | . . . . . Weapon 21 | 2 1 10 3 5 Energy Gun . | . . . . . Energy Cannon 2 | . . 2 . . Ballistic Gun 5 | 2 1 2 . . Ballistic Cannon 4 | . . 4 . . Launcher 4 | . . . 2 2 Special Weapon 3 | . . 2 . 1 Impact Weapon 1 | . . . . 1 Slashing Weapon 2 | . . . 1 1 Piercing Weapon . | . . . . . Special Melee Weapon . | . . . . . Unidentified Prototypes 1 | . . . . 1 Parts Lost 36 | . 2 6 . 28 Power 8 | . 1 2 . 5 Propulsion 8 | . 1 2 . 5 Utility 12 | . . . . 12 Weapon 8 | . . 2 . 6 Highest Loss Streak 7 | . 1 2 . 7 To Critical Strikes . | . . . . . Average Slot Usage (%) 83 | . 99 96 70 52 Engine 6 | . 2 11 13 2 Core 4 | . 11 1 . . Wheel 19 | . 27 25 13 3 Device 12 | . 14 . 13 27 Storage 8 | . 14 11 . 2 Processor 6 | . . 18 . 3 Ballistic Gun 12 | . 28 12 . . Ballistic Cannon 4 | . . 10 1 1 Launcher 2 | . . . 13 1 Slashing Weapon 2 | . . . 13 1 Naked Turns . | . . . . . Heaviest Build 65 | 11 28 31 14 65 Greatest Support 49 | 26 32 46 20 49 Greatest Overweight (x) 10 | 1 1 1 4 10 Average Overweight (x) . | . . . . . Largest Inventory Capacity 20 | 8 15 15 15 20 Average Capacity 11 | 7 14 14 5 7 Most Carried 15 | 8 15 15 15 10 Average Carried 9 | 6 14 11 4 4 Final Capacity 15 | 8 15 15 5 10 Final Carried 15 | 8 15 13 5 10 Scrap Engine Consumption 101 | . . . 36 65 Constructs Created 9 | . . . 1 8 Constructs Modified 22 | . . . 5 17 Class Distribution -------------------- 47% | Mutant 26% | Scavenger-Mutant 13% | Construct 6% | Gunner 4% | Scavenger-Gunner Dominant Class ---------------- Scavenger-Mutant | -10/Materials Mutant | -10/Subcaves Construct | -7/Recycling Mutant | -5/Factory Resources | -11 -10 -10 -7 -5 ----------- Run | Yrd Mat Sub Rec Fac Matter Collected 2152 | 370 226 825 174 557 Remotely 356 | . . . . 356 Salvage Created 4617 | 303 746 401 824 2343 Parts 218 | 20 44 21 27 106 Haulers Intercepted 3 | . 2 . . 1 Recyclers Shooed 12 | 1 2 . . 9 Parts Field Recycled . | . . . . . Retrieved Matter . | . . . . . Parts Self-Destructed 6 | . . 6 . . Prevented . | . . . . . Kills | -11 -10 -10 -7 -5 ------- Run | Yrd Mat Sub Rec Fac Combat Hostiles Destroyed 49 | . 11 12 . 26 Melee 4 | . . . . 4 Guns 25 | . 11 4 . 10 Cannons 11 | . . 8 . 3 AOE 8 | . . . . 8 Classes Destroyed 13 | 3 4 2 . 4 Worker 10 | 2 2 . . 6 Builder 7 | . . . . 7 Tunneler 9 | 8 . . . 1 Hauler 3 | . 2 . . 1 Recycler 12 | 1 2 . 2 7 Turret 2 | . . 2 . . Watcher 5 | . 3 . . 2 Swarmer 13 | . 3 1 . 9 Grunt 14 | . 8 . . 6 Sentry 2 | . . . . 2 Hunter 4 | . . . . 4 Programmer 5 | . . . . 5 Subdweller 11 | . . 11 . . Best Kill Streak 10 | 4 3 3 2 10 Combat Bots Only 5 | . 3 2 . 5 Max Kills in Single Turn 2 | 1 1 1 2 2 Gunslinging . | . . . . . Exploded 1 | . . . . 1 Melee 1 | . . . . 1 Uniques/NPCs Destroyed . | . . . . . Combat | -11 -10 -10 -7 -5 -------- Run | Yrd Mat Sub Rec Fac Hostile Shots Fired 541 | . 48 104 . 389 Missed 155 | . 14 28 . 113 Damage Taken 5427 | . 280 1047 20 4080 Core 1258 | . 28 221 . 1009 Absorbed by Shields . | . . . . . Ignored by Resistances 1521 | . 89 282 5 1145 Regen/Repaired (Parts) 490 | . 34 . . 456 Core Remaining (%) 50 | 100 . . . . Volleys Fired 371 | 35 69 135 3 129 Largest 3 | 2 2 3 1 1 Hottest 159 | 40 40 159 39 69 Shots Fired 554 | 70 138 215 4 127 Gun 356 | 70 138 68 . 80 Cannon 160 | . . 133 . 27 Launcher 21 | . . . 4 17 Special 17 | . . 14 . 3 Kinetic 414 | 70 138 181 . 25 Thermal 117 | . . 34 . 83 Explosive 16 | . . . 3 13 Electromagnetic 7 | . . . 1 6 Robot Hit Streak 42 | 17 26 42 4 24 Robot Miss Streak 3 | 1 2 3 . 3 Penetration Max 1 | . . . . 1 Secondary Targets 2 | . 2 . . . Max Gunslinging Chain 1 | . 1 . . . Shots Hit Robots 391 | 55 113 90 13 120 Core Hits 192 | 20 50 29 9 84 Critical Kills 2 | . 1 . . 1 Critical Parts Destroyed 2 | . 1 . . 1 Critical Strikes 15 | . 2 4 . 9 Burn 6 | . . . . 6 Destroy 2 | . 2 . . . Blast 4 | . . 4 . . Smash 2 | . . . . 2 Sever 1 | . . . . 1 Melee Attacks 42 | . . . 12 30 Impact 15 | . . . . 15 Slashing 27 | . . . 12 15 Piercing . | . . . . . Sneak Attacks 11 | . . . . 11 Combat Hostiles . | . . . . . Follow-up Attacks . | . . . . . Damage Inflicted 9159 | 440 906 1303 921 5589 Guns 3271 | 440 906 339 . 1586 Cannons 1262 | . . 964 . 298 Explosions 2267 | . . . 129 2138 Melee 2304 | . . . 792 1512 Ramming 8 | . . . . 8 Kinetic 2897 | 440 906 1130 . 421 Thermal 1864 | . . 173 . 1691 Explosive 1689 | . . . 108 1581 Electromagnetic 397 | . . . 21 376 Impact 894 | . . . . 894 Slashing 1410 | . . . 792 618 Piercing . | . . . . . Highest Corruption 11 | . 1 1 1 11 Average Corruption 1 | . 1 1 1 4 Corruption Purged . | . . . . . Corruption Blocked . | . . . . . Effects 67 | . 4 22 9 32 Message Errors 16 | . 2 3 1 10 Matter Fused 17 | . 2 10 1 4 Heat Flow Errors 10 | . . 2 2 6 Energy Discharges 8 | . . 2 3 3 Parts Fused 2 | . . 1 1 . Data Loss (minor) 2 | . . . . 2 Data Loss (major) 3 | . . 1 . 2 Misfires 3 | . . 2 1 . Alerts 4 | . . 1 . 3 Weapon Failures 2 | . . . . 2 Overload Shots . | . . . . . Overflow Damage 864 | . . 8 154 702 Projectiles 75 | . . 8 . 67 Explosions 20 | . . . 2 18 Melee 769 | . . . 152 617 Knockbacks 16 | . . 9 . 7 Impact 6 | . . . . 6 Kinetic 9 | . . 9 . . Secondary 1 | . . . . 1 Self-Inflicted Damage 81 | . . . 20 61 Shots 5 | . . . 1 4 Rammed 4 | . . . . 4 Targets Rammed 4 | . . . . 4 Kicked . | . . . . . Crushed . | . . . . . Highest Temperature 256 | . 14 186 256 222 Average Temperature 32 | . 5 54 114 43 Received Heat Transfer 780 | . 153 294 . 333 Effects 1 | . . . 1 . Interference 1 | . . . 1 . Siege Activations . | . . . . . Robots Corrupted . | . . . . . Combat Hostiles . | . . . . . Parts Fried 7 | . . . . 7 Impact Corruptions 18 | . . . . 18 Robots Melted 1 | . . . . 1 Combat Hostiles 1 | . . . . 1 Parts Melted 12 | . . 2 . 10 Heat Transferred 3847 | . . 370 . 3477 Parts Sabotaged . | . . . . . Parts Stolen . | . . . . . Parts Stripped . | . . . . . Power Chain Reactions 1 | . . . . 1 Alert | -11 -10 -10 -7 -5 ------- Run | Yrd Mat Sub Rec Fac Peak Influence 620 | 55 265 . 239 620 Initial 234 | . 31 . 234 84 Average 165 | 23 64 . 67 362 Maximum Alert Level 2 | . 1 . 1 2 Low Security (%) 62 | 100 92 . 84 7 Level 1 22 | . 7 . 15 48 Level 2 15 | . . . . 44 Level 3 . | . . . . . Level 4 . | . . . . . Level 5 . | . . . . . High Security . | . . . . . Max Security . | . . . . . Squads Dispatched 10 | . 3 . . 7 Investigation 4 | . 3 . . 1 Extermination 3 | . . . . 3 Reinforcement 3 | . . . . 3 Assault . | . . . . . Garrison . | . . . . . Intercept . | . . . . . Searches Triggered . | . . . . . Construction Impeded 3 | . . . . 3 Haulers Reinforced . | . . . . . Active Scanning Responses . | . . . . . Cargo Convoy Interrupts 1 | . . . . 1 Stealth | -11 -10 -10 -7 -5 --------- Run | Yrd Mat Sub Rec Fac Distress Signals 1 | . . . . 1 Communications Jammed . | . . . . . Distress Signals . | . . . . . Times Spotted 86 | . 21 14 . 51 Peak Tracking Total 7 | . 4 3 . 7 Tactical Retreats 7 | . 2 2 . 3 Traps | -11 -10 -10 -7 -5 ------- Run | Yrd Mat Sub Rec Fac Traps Triggered 3 | . 1 1 . 1 Indirectly . | . . . . . Trap Hack Attempts . | . . . . . Triggered . | . . . . . Disarmed . | . . . . . Reprogrammed . | . . . . . Reused . | . . . . . Traps Extracted . | . . . . . Installed . | . . . . . Triggered 5 | . . 2 . 3 Machines | -11 -10 -10 -7 -5 ---------- Run | Yrd Mat Sub Rec Fac Machines Disabled 8 | . . 3 . 5 Max in Single Turn 3 | . . 1 . 3 Machines Repaired . | . . . . . Machines Dismantled . | . . . . . Machines Sabotaged . | . . . . . Overloaded Fab Kills . | . . . . . Hacking | -11 -10 -10 -7 -5 --------- Run | Yrd Mat Sub Rec Fac Machines Accessed 21 | . 10 1 8 2 Terminals 13 | . 7 . 5 1 Fabricators . | . . . . . Repair Stations 2 | . 1 . . 1 Recycling Units 5 | . 2 . 3 . Scanalyzers . | . . . . . Garrison Access . | . . . . . Total Hacks 54 | . 32 1 16 5 Successful 26 | . 15 1 7 3 Failed 28 | . 17 . 9 2 Catastrophic 3 | . 3 . . . Database Lockouts . | . . . . . Manual 24 | . 21 . 2 1 Terminals 36 | . 24 . 11 1 Fabricators . | . . . . . Repair Stations 6 | . 2 . . 4 Recycling Units 11 | . 6 . 5 . Scanalyzers . | . . . . . Garrison Access . | . . . . . Terminal Hacks 7 | . 2 1 4 . Record 1 | . . . 1 . Prototype ID Bank 2 | . 2 . . . Unreport Threat 1 | . . . 1 . Registered Components 1 | . . . 1 . Zone Layout 1 | . . . 1 . Derelict Proto ID Bank 1 | . . 1 . . Fabricator Hacks . | . . . . . Repair Station Hacks 4 | . 2 . . 2 Scan Component 2 | . 1 . . 1 Repair 2 | . 1 . . 1 Recycling Unit Hacks 4 | . 2 . 2 . Report Inventory 2 | . 1 . 1 . Retrieve Components 2 | . 1 . 1 . Scanalyzer . | . . . . . Garrison Access Hacks . | . . . . . Unauthorized Hacks 11 | . 9 . 1 1 Terminals 8 | . 7 . . 1 Track 1 | . 1 . . . Botnet 7 | . 6 . . 1 Fabricators . | . . . . . Repair Stations . | . . . . . Recycling Units 3 | . 2 . 1 . Tunnel 3 | . 2 . 1 . Scanalyzers . | . . . . . Garrison Access . | . . . . . Data Cores Recovered . | . . . . . Used . | . . . . . Hacking Detections 16 | . 8 . 6 2 Full Trace Events 1 | . 1 . . . Feedback Events . | . . . . . Feedback Blocked . | . . . . . Robot Schematics Acquired . | . . . . . Robots Built . | . . . . . Authchips . | . . . . . Time . | . . . . . Total Robot Build Rating . | . . . . . Part Schematics Acquired . | . . . . . Parts Built . | . . . . . Authchips . | . . . . . Time . | . . . . . Total Part Build Rating . | . . . . . Parts Repaired 2 | . 1 . . 1 Time 52 | . 38 . . 14 Parts Recycled . | . . . . . Recycled Matter . | . . . . . Retrieved Matter . | . . . . . Retrieved Components 13 | . 10 . 3 . Parts Scanalyzed . | . . . . . Part Schematics Acquired . | . . . . . Parts Damaged . | . . . . . Bothacking | -11 -10 -10 -7 -5 ------------ Run | Yrd Mat Sub Rec Fac Used RIF Installer . | . . . . . Robots Hacked . | . . . . . Non-combat . | . . . . . Combat . | . . . . . Robot Hacks Applied . | . . . . . Relay Couplers Released . | . . . . . Fabnet Peak Effective % . | . . . . . Robots Rewired . | . . . . . Allies Hacked . | . . . . . Hacks Repelled . | . . . . . Allies | -11 -10 -10 -7 -5 -------- Run | Yrd Mat Sub Rec Fac Total Allies . | . . . . . Largest Group . | . . . . . Highest-Rated Group . | . . . . . Highest-Rated Ally . | . . . . . Total Orders . | . . . . . Ally Attacks . | . . . . . Total Damage . | . . . . . Kills . | . . . . . Allies Corrupted . | . . . . . Allies Melted . | . . . . . Intel | -11 -10 -10 -7 -5 ------- Run | Yrd Mat Sub Rec Fac Robot Analysis Total . | . . . . . Derelict Logs Recovered 2 | . . 2 . . Drone Launches . | . . . . . Drone Recoveries . | . . . . . Exploration | -11 -10 -10 -7 -5 ------------- Run | Yrd Mat Sub Rec Fac Turns Passed 8276 | 277 2332 2678 1056 1933 Spaces Moved 5584 | 187 1515 2019 789 1074 Core 84 | 29 . . 34 21 Treads 78 | . . . . 78 Legs 262 | . . . . 262 Wheels 5160 | 158 1515 2019 755 713 Hover . | . . . . . Flight . | . . . . . Fastest Speed 50 | 50 80 90 100 50 Average Speed 101 | 84 99 101 106 100 Slowest Speed 550 | 100 105 115 250 550 Overloaded Moves . | . . . . . Propulsion Burnouts . | . . . . . Robots Hopped . | . . . . . Cave-ins Triggered . | . . . . . Exploration Rate (%) 59 | 5 96 84 94 20 Regions Visited 4 Branch Regions 2 Pre-discovered Areas 5 | . 2 2 1 . Known Exits Taken 1 | . . 1 . . Unknown Exits Taken 3 | 1 1 . 1 . Scrap Searched 16 | . . 16 . . Spaces Dug 11 | . . 3 1 7 Terrain Destroyed 147 | . . 4 49 94 Melee 8 | . . . 1 7 Projectile 5 | . . 4 . 1 AOE 134 | . . . 48 86 Terrain Rammed . | . . . . . Walls Destroyed . | . . . . . Machines Disabled . | . . . . . Actions | -11 -10 -10 -7 -5 --------- Run | Yrd Mat Sub Rec Fac Total 7611 | 251 2231 2416 983 1730 Wait 1420 | . 611 207 160 442 Move 5580 | 186 1514 2018 788 1074 Hop . | . . . . . Pick Up 72 | 15 16 17 7 17 Fast Attach 25 | 3 2 6 . 14 Attach 29 | 5 2 10 1 11 Detach 1 | . . . . 1 Swap 20 | 2 5 9 3 1 Drop 47 | 5 12 14 9 7 Fire 371 | 35 69 135 3 129 Melee 42 | . . . 12 30 Ram 4 | . . . . 4 Kick . | . . . . . Crush . | . . . . . Escape Stasis . | . . . . . Rewire . | . . . . . Trap . | . . . . . Miscellaneous . | . . . . . Route ------- -11/Scrapyard -10/Materials (discovered 5 exits: [*Mat x3] / [*Min] / *Sub) -10/Subcaves (discovered 3 exits: *Mat x2 / *Rec) -7/Recycling -5/Factory History --------- Turn | Location | Event 13 | -11/Scrapyard | Discovered new exit (range 14) 278 | -11/Scrapyard | Entered Materials 312 | -10/Materials | Build established: Mutant 390 | -10/Materials | Discovered new exit (range 11) 607 | -10/Materials | Discovered new exit (range 4) 861 | -10/Materials | Repaired Lgt. Nuclear Core 1219 | -10/Materials | Build established: Scavenger-Mutant 1790 | -10/Materials | Discovered new exit (range 8) 2276 | -10/Materials | Discovered new exit (range 15) 2293 | -10/Materials | Discovered new exit (range 8) 2610 | -10/Materials | Entered Subcaves 2610 | -10/Subcaves | Discovered new exit (range 5) 2629 | -10/Subcaves | Identified exit to Materials 2717 | -10/Subcaves | Discovered exit to Materials (range 15) 3013 | -10/Subcaves | Shifting Twisted Machinery released Sub. Shrapnel Launcher 3153 | -10/Subcaves | Ambushed by Subdwellers from Twisted Machinery 3165 | -10/Subcaves | Core integrity fell below 50% 3253 | -10/Subcaves | Build established: Mutant 3409 | -10/Subcaves | Shifting Twisted Machinery released Sub. Monowheel 3655 | -10/Subcaves | Visited 4L-MR0's lab 3671 | -10/Subcaves | Found Rainbow Chip 3673 | -10/Subcaves | Attached Rainbow Chip, gained temporary slots: Power, Propulsion, Utility, Weapon 3932 | -10/Subcaves | Shifting Twisted Machinery released Sub. Machine Gun 3982 | -10/Subcaves | Build established: Scavenger-Gunner 4011 | -10/Subcaves | Shifting Twisted Machinery released Sub. Power Source 4028 | -10/Subcaves | Ambushed by Subdwellers from Twisted Machinery 4091 | -10/Subcaves | A swath of the cavern ceiling suddenly collapsed 4418 | -10/Subcaves | Learned location of Mines (-9) 4591 | -10/Subcaves | Build established: Mutant 4608 | -10/Subcaves | Shifting Twisted Machinery released Sub. Machine Gun 4640 | -10/Subcaves | Shifting Twisted Machinery released Sub. Machine Gun 4718 | -10/Subcaves | Disturbed a concealed Subdweller 4730 | -10/Subcaves | Core integrity fell below 20% 5071 | -10/Subcaves | Build established: Gunner 5221 | -10/Subcaves | Discovered new exit (range 16) 5286 | -10/Subcaves | Identified exit to Recycling 5288 | -10/Subcaves | Entered Recycling 5288 | -7/Recycling | Found Scrap Engine 5662 | -7/Recycling | Build established: Construct 6281 | -7/Recycling | Discovered new exit (range 11) 6344 | -7/Recycling | Entered Factory 6344 | -5/Factory | Evolved 10 slots: Power x1, Propulsion x2, Utility x7 6639 | -5/Factory | Build established: Mutant 6795 | -5/Factory | Repaired Chainsword 7223 | -5/Factory | Lost 3 parts (1p2n) 7424 | -5/Factory | Lost 3 parts (1p2u) 7626 | -5/Factory | Lost 7 parts (2n2u3w) 7666 | -5/Factory | Core integrity fell below 50% 7709 | -5/Factory | Core integrity fell below 20% 7729 | -5/Factory | Lost 6 parts (1p1n2u2w) 7841 | -5/Factory | Cargo convoy interrupted 8262 | -5/Factory | System corruption reached 10% 8277 | -5/Factory | Destroyed by P-70 Sage with Tesla Rifle Last Messages --------------- 08239_ Arm. Scrap Engine damaged due to network destabilization (-7). 08240_ Acquired Weapon Cycler. 08246_ Nuclear Reactor explodes. 08246_ Adv. Heat Sink destroyed. 08248_ Arm. Scrap Engine consumes Imp. Carbon-fiber Leg. 08248_ Imp. Focal Shield destroyed. 08250_ Critical hit (Burn: +37). 08251_ Arm. Scrap Engine destroyed. 08251_ Scrap Engine core remains intact and functional. 08251_ Penetrated by Slug. 08253_ Slug penetrates Wall. 08255_ 30ACQ/0T5BAFVVD N|S Q,FGW F7/3YJSPABYNEZ 08258_ Recycling Unit disabled. 08258_ Hpw. Tractor Beam tumbles out of recycling unit. 08268_ Acquired Imp. Terrain Scan Processor. 08273_ Penetrated by Slug. Map ----- +----------------------------------------------------+ | ???????????????????????????????? | | ???????????????????????????????? | | ???????????????????????????????? | | ???????????????????????????????? | | ???????????????????????????????? | | ???????????????????????????????? | | ???????????????????????????????? | | ???????????????????????????????? | | ???????????????????????????????? | | ???????????????????????????????? | | ???????????????????????????????? | | ???????????????????????????????? | | ???????????????????????????????? | | ???????????????????????????????? | | ?????# ????????????????????????? | | ?????+ ???????????????????????? | | ?????# ??????????????????????? | | ###### #####+########????????? | | # ## #?????##?? | | # "" ###### ##? | | + "" # Y #? | | """ """ # "T /p "" #? | | ^ """ """ # "" #p "" #? | | ### """ """ # "" =# "" #? | | ??# # # Y" #? | | ??# """ """ !####### @ "" #? | | ??# """ """ "#???# "" #? | | ??# """ """ Y"#???#!!! "" #? | | ??+ ""#???#!! #? | | ??# """ """ ###???#!! ! !#? | | ### """ """ #?????# #? | | # """ """ #######+#######? | | # #????? | | #????? | | # #????? | | # ##"####"#########+#+#????? | | ### # ###????????????????? | | #??????????????????? | | #??????????????????? | | """ #??????????????????? | | """ #??????????????????? | | """ #??????????????????? | | #??????????????????? | | #??????????????????? | | ! ##??????????????????? | | ##### ##???????????????????? | | ????#######????????????????????? | | ???????????????????????????????? | | ???????????????????????????????? | | ???????????????????????????????? | +----------------------------------------------------+ Best States ------------- Heat Dissipation 59 Energy Generation 15 Energy Capacity 200 Matter Stores 300 Matter Capacity 300 Sight Range 16 Terrain Scan Range 16 Terrain Scan Density 110 Additional Mass Support 12 Resistance: KI 45 Resistance: TH 20 Resistance: EX 70 Resistance: EM 45 Resistance: I 20 Resistance: S 20 Resistance: P 20 Phase Shifting 5 Evasion (%) 64 Target Analysis 6 Recoil Reduction 12 Offensive Hacking 10 Item Schematics ----------------- None Robot Schematics ------------------ None Fabricated ------------ Nothing Alien Tech Used ----------------- None Achievements -------------- None Challenges ------------ None Game ------ Seed MappingMetafieldNukerbomber Manual? 0 Play Time 01:03:41 Cumulative 87.2 hours Start 2024.07.26 @ 15:17:47 End 2024.07.26 @ 16:35:43 Sessions 1 Manual Loads 0 Difficulty Adventurer Special Mode None Game No. 124 Rogue 0 Adventurer 124 Explorer 0 Win Type - Total 0 Types 0/0/0/0/0/0/0/0/0 Lore% 45 Gallery% 46 Achievement% 33 Wizard Run 0 Options --------- Layout 2 ASCII 0 Keyboard 0 Movement Mouse Keybinds 0 Fullscreen 2 Font 48/Smallcaps Map View 50x44 Zoom Use 0% Tactical HUD 1 Map Filters NONE Filters NONE Steam 1 RUN: 1c8795ac-d6a6-4d30-b702-9220ad938837